[Event "Bayerischer Schachbund IM 2024"]
[Site "Rosenheim"]
[Date "2024.08.13"]
[Round "2.9"]
[White "Reimann, Sebastian"]
[Black "Georgescu, Lena"]
[Result "1/2-1/2"]
[Annotator "RC"]
[ECO "A33"]
[WhiteElo "2327"]
[BlackElo "2209"]
[PlyCount "88"]
[EventDate "2024.08.12"]
[EventType "tourn"]
[EventCountry "GER"]
[SourceTitle "playchess.com"]
[Source "ChessBase"]
[SourceQuality "1"]
[TimeControl "40/5400+30:1800+30"]

1. c4 {[%emt 1:31:00]} c5 {[%emt 1:31:00]} 2. Nf3 {[%emt 0:00:30]} Nf6 {[%emt 0:00:30]} 3. Nc3 {[%emt 0:00:30]} e6 4. d4 {[%emt 0:00:30]} cxd4 {[%emt 0:01:00]} 5. Nxd4 {[%emt 0:00:30]} d5 {[%emt 0:00:30]} 6. Nc2 {[%emt 0:00:30]} Nc6 {[%emt 0:00:30]} 7. cxd5 {[%emt 0:00:30]} exd5 {[%emt 0:00:30]} 8. e3 {[%emt 0:00:30]} Bd6 {[%emt 0:00:30]} 9. Be2 {[%emt 0:00:30]} Be5 {[%emt 0:00:30]} 10. O-O {[%emt 0:00:30]} O-O {[%emt 0:00:30]} 11. Bf3 {[%emt 0:00:30]} Bf5 {[%emt 0:00:30]} 12. h3 {[%emt 0:00:30]} Re8 {[%emt 0:00:30]} 13. Nxd5 {[%emt 0:00:30]} Nxd5 {[%emt 0:00:30]} 14. e4 {[%emt 0:00:30]} Bxh3 {[%emt 0:00:30]} 15. gxh3 {[%emt 0:00:30]} Qh4 {[%emt 0:00:30]} 16. Bg2 {[%emt 0:00:30]} Nf4 {[%emt 0:00:30]} 17. Qg4 {[%emt 0:00:30]} Qxg4 {[%emt 0:00:30]} 18. hxg4 {[%emt 0:00:30]} Rad8 {[%emt 0:00:30]} 19. Bxf4 {[%emt 0:00:30]} Bxf4 {[%emt 0:00:30]} 20. Rad1 {[%emt 0:00:30]} Ne5 {[%emt 0:00:30]} 21. f3 {[%emt 0:00:30]} g5 {[%emt 0:00:30]} 22. Nb4 {[%emt 0:00:30]} Be3+ {[%emt 0:00:30]} 23. Kh2 {[%emt 0:00:30]} Ng6 {[%emt 0:00:30]} 24. Nd5 {[%emt 0:00:30]} Bf4+ {[%emt 0:00:30]} 25. Kg1 {[%emt 0:00:30]} Kg7 {[%emt 0:00:30]} 26. Rfe1 {[%emt 0:00:30]} Rc8 {[%emt 0:00:30]} 27. Bf1 {[%emt 0:00:30]} Rc2 {[%emt 0:00:30]} 28. Re2 {[%emt 0:00:30]} Rec8 {[%emt 0:00:30]} 29. Rde1 {[%emt 0:00:30]} Rxe2 {[%emt 0:00:30]} 30. Rxe2 {[%emt 0:00:30]} Rc1 {[%emt 0:00:30]} 31. Kf2 {[%emt 0:00:30]} a6 {[%emt 0:00:30]} 32. Nb4 {[%emt 0:00:30]} Be5 {[%emt 0:00:30]} 33. Rd2 {[%emt 0:00:30]} Nf4 {[%emt 0:00:30]} 34. Nd5 {[%emt 0:00:30]} Bd6 {[%emt 0:00:30]} 35. Nxf4 {[%emt 0:00:30]} Bxf4 {[%emt 0:00:30]} 36. Rd7 {[%emt 0:00:30]} Rc2+ {[%emt 0:00:30]} 37. Ke1 {[%emt 0:00:30]} b5 {[%emt 0:00:30]} 38. Ra7 {[%emt 0:00:30]} Rxb2 {[%emt 0:00:30]} 39. Rxa6 {[%emt 0:00:30]} Be5 {[%emt 0:00:30]} 40. Bd3 {[%emt 0:00:30]} Bc3+ {[%emt 0:00:30]} 41. Kf1 {[%emt 0:30:30]} Bd4 {[%emt 0:30:30]} 42. Ke1 {[%emt 0:00:30]} Bc3+ {[%emt 0:00:30]} 43. Kf1 {[%emt 0:00:30]} Bd4 {[%emt 0:00:30]} 44. Ke1 {[%emt 0:00:30]} Bc3+ {[%emt 0:00:30]} 1/2-1/2

[Event "Bayerischer Schachbund IM 2024"]
[Site "Rosenheim"]
[Date "2024.08.13"]
[Round "2.10"]
[White "Hasenohr, Benedict"]
[Black "Miller, Eduard"]
[Result "0-1"]
[Annotator "RC"]
[ECO "E71"]
[WhiteElo "2339"]
[BlackElo "2319"]
[PlyCount "84"]
[EventDate "2024.08.12"]
[EventType "tourn"]
[EventCountry "GER"]
[SourceTitle "playchess.com"]
[Source "ChessBase"]
[SourceQuality "1"]
[TimeControl "40/5400+30:1800+30"]

1. d4 {[%emt 0:00:03]} Nf6 {[%emt 0:00:07]} 2. c4 {[%emt 0:00:05]} d6 {[%emt 0:00:37]} 3. Nc3 {[%emt 0:00:29]} g6 {[%emt 0:01:12]} 4. e4 {[%emt 0:00:57]} Bg7 {[%emt 0:00:12]} 5. h3 {[%emt 0:00:06]} Nbd7 {[%emt 0:00:14]} 6. Bd3 {[%emt 0:02:50]} e5 {[%emt 0:10:18]} 7. d5 {[%emt 0:00:05]} h5 {[%emt 0:14:32]} 8. Bg5 {[%emt 0:04:59]} Bh6 {[%emt 0:09:37]} 9. Bxh6 {[%emt 0:02:59]} Rxh6 {[%emt 0:00:08]} 10. b4 {[%emt 0:03:36]} h4 {[%emt 0:02:45]} 11. Qc1 {[%emt 0:02:29]} Rh8 {[%emt 0:01:32]} 12. Nge2 {[%emt 0:03:06]} Nh5 {[%emt 0:02:07]} 13. O-O {[%emt 0:02:59]} a6 {[%emt 0:07:26]} 14. Bc2 {[%emt 0:13:02]} g5 {[%emt 0:09:52]} 15. Ba4 {[%emt 0:29:23]} Kf8 {[%emt 0:02:41]} 16. Bxd7 {[%emt 0:03:03]} Bxd7 {[%emt 0:00:07]} 17. f3 {[%emt 0:07:05]} Nf4 {[%emt 0:05:34]} 18. Qd2 {[%emt 0:00:24]} Qc8 {[%emt 0:09:11]} 19. Rf2 {[%emt 0:00:12]} Rg8 {[%emt 0:02:55]} 20. Kf1 {[%emt 0:00:42]} Rg6 {[%emt 0:07:06]} 21. Rc1 {[%emt 0:00:50]} c5 {[%emt 0:02:12]} 22. b5 {[%emt 0:09:26]} axb5 {[%emt 0:00:05]} 23. cxb5 {[%emt 0:00:06]} Ra3 {[%emt 0:00:35]} 24. Rb1 {[%emt 0:01:03]} c4 {[%emt 0:02:22]} 25. Nxf4 {[%emt 0:02:02]} gxf4 {[%emt 0:00:05]} 26. Rb4 {[%emt 0:00:25]} Bxh3 {[%emt 0:05:40]} 27. gxh3 {[%emt 0:02:20]} Qxh3+ {[%emt 0:00:01]} 28. Ke2 {[%emt 0:00:05]} Rg2 {[%emt 0:02:26]} 29. Rb1 {[%emt 0:03:53]} Rxf2+ {[%emt 0:00:23]} 30. Kxf2 {[%emt 0:00:01]} Qg3+ {[%emt 0:00:02]} 31. Ke2 {[%emt 0:00:09]} Qg2+ {[%emt 0:00:07]} 32. Kd1 {[%emt 0:00:03]} Qxf3+ {[%emt 0:00:25]} 33. Kc2 {[%emt 0:00:01]} Ke7 {[%emt 0:03:34]} 34. Kb2 {[%emt 0:02:03]} Ra8 {[%emt 0:00:01]} 35. Qe2 {[%emt 0:00:03]} Qxe2+ {[%emt 0:01:06]} 36. Nxe2 {[%emt 0:00:04]} Rg8 {[%emt 0:00:41]} 37. Rg1 {[%emt 0:00:42]} Rxg1 {[%emt 0:00:21]} 38. Nxg1 {[%emt 0:00:05]} f5 {[%emt 0:00:04]} 39. Kc3 {[%emt 0:05:19]} fxe4 {[%emt 0:00:30]} 40. Kxc4 {[%emt 0:00:06]} f3 {[%emt 0:00:23]} 41. Nh3 {[%emt 0:30:08]} f2 {[%emt 0:31:10]} 42. Nxf2 {[%emt 0:00:00]} e3 {[%emt 0:00:00]} 0-1

[Event "Bayerischer Schachbund IM 2024"]
[Site "Rosenheim"]
[Date "2024.08.13"]
[Round "3.6"]
[White "Miller, Eduard"]
[Black "Schulz, Lukas"]
[Result "0-1"]
[Annotator "RC"]
[ECO "A48"]
[WhiteElo "2319"]
[BlackElo "2298"]
[PlyCount "74"]
[EventDate "2024.08.12"]
[EventType "tourn"]
[EventCountry "GER"]
[SourceTitle "playchess.com"]
[Source "ChessBase"]
[SourceQuality "1"]
[TimeControl "40/5400+30:1800+30"]

1. d4 {[%emt 0:03:45]} Nf6 {[%emt 0:00:08]} 2. Bf4 {[%emt 0:00:06]} g6 {[%emt 0:00:15]} 3. Nd2 {[%emt 0:00:07]} Bg7 {[%emt 0:04:34]} 4. c3 {[%emt 0:01:48]} O-O {[%emt 0:00:17]} 5. e4 {[%emt 0:00:06]} d6 {[%emt 0:01:54]} 6. Ngf3 {[%emt 0:00:05]} Nbd7 {[%emt 0:02:54]} 7. Qc2 {[%emt 0:00:17]} b6 {[%emt 0:04:53]} 8. Be2 {[%emt 0:02:35]} Bb7 {[%emt 0:00:51]} 9. O-O {[%emt 0:00:09]} h6 {[%emt 0:10:32]} 10. h3 {[%emt 0:01:26]} e5 {[%emt 0:05:29]} 11. dxe5 {[%emt 0:00:38]} Nh5 {[%emt 0:01:04]} 12. Be3 {[%emt 0:01:13]} dxe5 {[%emt 0:00:08]} 13. Rfd1 {[%emt 0:01:30]} Qe7 {[%emt 0:01:44]} 14. b4 {[%emt 0:02:01]} Nf4 {[%emt 0:08:35]} 15. Bf1 {[%emt 0:01:04]} Ne6 {[%emt 0:11:09]} 16. Bd3 {[%emt 0:15:12]} Nf4 {[%emt 0:10:50]} 17. Bc4 {[%emt 0:04:43]} Kh8 {[%emt 0:00:11]} 18. a4 {[%emt 0:01:05]} f5 {[%emt 0:07:23]} 19. Bxf4 {[%emt 0:18:17]} fxe4 {[%emt 0:01:31]} 20. Bg5 {[%emt 0:01:09]} hxg5 {[%emt 0:04:12]} 21. Nxe4 {[%emt 0:00:14]} Rf4 {[%emt 0:15:32]} 22. Bd5 {[%emt 0:09:01]} c6 {[%emt 0:03:52]} 23. Bb3 {[%emt 0:02:55]} g4 {[%emt 0:02:54]} 24. Nfg5 {[%emt 0:02:56]} Bh6 {[%emt 0:00:37]} 25. Ne6 {[%emt 0:02:12]} gxh3 {[%emt 0:00:32]} 26. Nxf4 {[%emt 0:00:17]} exf4 {[%emt 0:00:23]} 27. Qd3 {[%emt 0:03:28]} h2+ {[%emt 0:01:00]} 28. Kxh2 {[%emt 0:00:43]} Ne5 {[%emt 0:00:29]} 29. Qh3 {[%emt 0:08:25]} Kg7 {[%emt 0:00:30]} 30. Nd6 {[%emt 0:00:29]} f3 {[%emt 0:00:34]} 31. Nf7 {[%emt 0:12:25]} Bf4+ {[%emt 0:00:30]} 32. g3 {[%emt 0:02:24]} Nxf7 {[%emt 0:01:03]} 33. Rd7 {[%emt 0:00:14]} Bxg3+ {[%emt 0:00:00]} 34. Kxg3 {[%emt 0:02:27]} Qe5+ {[%emt 0:00:00]} 35. Kxf3 {[%emt 0:00:10]} Rf8 {[%emt 0:00:58]} 36. Rxf7+ {[%emt 0:00:13]} Rxf7+ {[%emt 0:00:05]} 37. Bxf7 {[%emt 0:01:06]} c5+ {[%emt 0:00:14]} 0-1

[Event "Bayerischer Schachbund IM 2024"]
[Site "Rosenheim"]
[Date "2024.08.13"]
[Round "3.7"]
[White "Georgescu, Lena"]
[Black "Hasenohr, Benedict"]
[Result "1-0"]
[Annotator "RC"]
[ECO "C10"]
[WhiteElo "2209"]
[BlackElo "2339"]
[PlyCount "77"]
[EventDate "2024.08.12"]
[EventType "tourn"]
[EventCountry "GER"]
[SourceTitle "playchess.com"]
[Source "ChessBase"]
[SourceQuality "1"]
[TimeControl "40/5400+30:1800+30"]

1. e4 {[%emt 0:00:02]} e6 {[%emt 0:00:04]} 2. d4 {[%emt 0:00:09]} d5 {[%emt 0:00:04]} 3. Nc3 {[%emt 0:00:03]} Nf6 {[%emt 0:00:05]} 4. Bg5 {[%emt 0:00:10]} dxe4 {[%emt 0:00:05]} 5. Nxe4 {[%emt 0:00:04]} Nbd7 {[%emt 0:00:06]} 6. Nf3 {[%emt 0:00:24]} h6 {[%emt 0:00:16]} 7. Nxf6+ {[%emt 0:00:06]} Nxf6 {[%emt 0:00:06]} 8. Be3 {[%emt 0:00:03]} Nd5 {[%emt 0:06:09]} 9. Bd2 {[%emt 0:01:04]} c5 {[%emt 0:02:32]} 10. Bb5+ {[%emt 0:00:54]} Bd7 {[%emt 0:00:24]} 11. Bxd7+ {[%emt 0:01:45]} Qxd7 {[%emt 0:00:06]} 12. c4 {[%emt 0:02:31]} Nb6 {[%emt 0:07:48]} 13. Rc1 {[%emt 0:00:54]} Rc8 {[%emt 0:04:12]} 14. dxc5 {[%emt 0:05:25]} Rxc5 {[%emt 0:03:16]} 15. Qe2 {[%emt 0:03:55]} Qc8 {[%emt 0:12:21]} 16. O-O {[%emt 0:28:31]} Be7 {[%emt 0:01:41]} 17. Be3 {[%emt 0:53:00]} Rc7 {[%emt 0:15:12]} 18. b3 {[%emt 0:00:00]} O-O {[%emt 0:13:51]} 19. Nd4 {[%emt 0:00:00]} Rd7 {[%emt 0:00:51]} 20. Nb5 {[%emt 0:00:00]} Qb8 {[%emt 0:01:08]} 21. Rfd1 {[%emt 0:00:00]} Rfd8 {[%emt 0:00:54]} 22. g3 {[%emt 0:00:00]} Bf6 {[%emt 0:03:02]} 23. a4 {[%emt 0:00:00]} Nc8 {[%emt 0:08:34]} 24. Rxd7 {[%emt 0:00:00]} Rxd7 {[%emt 0:00:05]} 25. Bf4 {[%emt 0:00:00]} e5 {[%emt 0:02:15]} 26. Bxh6 {[%emt 0:00:00]} gxh6 {[%emt 0:11:24]} 27. Qg4+ {[%emt 0:00:00]} Bg5 {[%emt 0:00:05]} 28. f4 {[%emt 0:00:00]} exf4 {[%emt 0:04:36]} 29. Qxd7 {[%emt 0:00:00]} fxg3 {[%emt 0:00:08]} 30. Qe8+ {[%emt 0:03:32]} Kg7 {[%emt 0:00:05]} 31. Rf1 {[%emt 0:00:12]} gxh2+ {[%emt 0:00:25]} 32. Kh1 {[%emt 0:00:33]} Bf6 {[%emt 0:01:10]} 33. Nd4 {[%emt 0:01:29]} Qc7 {[%emt 0:02:02]} 34. Nf5+ {[%emt 0:00:14]} Kh7 {[%emt 0:00:04]} 35. Nxh6 {[%emt 0:01:35]} Nd6 {[%emt 0:00:13]} 36. Qg8+ {[%emt 0:00:33]} Kxh6 {[%emt 0:00:05]} 37. Rxf6+ {[%emt 0:00:05]} Kh5 {[%emt 0:00:04]} 38. Qh7+ {[%emt 0:00:36]} Kg4 {[%emt 0:00:21]} 39. Qg7+ {[%emt 0:00:06]} 1-0

[Event "Bayerischer Schachbund IM 2024"]
[Site "Rosenheim"]
[Date "2024.08.13"]
[Round "3.8"]
[White "Goldbeck, Lars"]
[Black "Reimann, Sebastian"]
[Result "1-0"]
[Annotator "RC"]
[ECO "D58"]
[WhiteElo "2321"]
[BlackElo "2327"]
[PlyCount "75"]
[EventDate "2024.08.12"]
[EventType "tourn"]
[EventCountry "GER"]
[SourceTitle "playchess.com"]
[Source "ChessBase"]
[SourceQuality "1"]
[TimeControl "40/5400+30:1800+30"]

1. d4 {[%emt 0:00:01]} Nf6 {[%emt 0:08:34]} 2. c4 {[%emt 0:00:06]} e6 {[%emt 0:00:04]} 3. Nc3 {[%emt 0:00:07]} d5 {[%emt 0:00:35]} 4. Bg5 {[%emt 0:00:05]} Be7 {[%emt 0:03:21]} 5. e3 {[%emt 0:00:05]} h6 {[%emt 0:00:11]} 6. Bh4 {[%emt 0:00:12]} O-O {[%emt 0:00:26]} 7. Nf3 {[%emt 0:00:05]} b6 {[%emt 0:00:32]} 8. Be2 {[%emt 0:00:16]} Bb7 {[%emt 0:01:23]} 9. Bxf6 {[%emt 0:00:05]} Bxf6 {[%emt 0:00:07]} 10. cxd5 {[%emt 0:00:03]} exd5 {[%emt 0:00:15]} 11. O-O {[%emt 0:00:02]} Re8 {[%emt 0:06:47]} 12. b4 {[%emt 0:02:23]} a6 {[%emt 0:02:53]} 13. Qb3 {[%emt 0:03:59]} Qd6 {[%emt 0:03:38]} 14. Bd3 {[%emt 0:11:50]} Nd7 {[%emt 0:02:07]} 15. b5 {[%emt 0:02:25]} a5 {[%emt 0:10:50]} 16. Rac1 {[%emt 0:05:17]} g6 {[%emt 0:01:45]} 17. Rfe1 {[%emt 0:05:01]} Rac8 {[%emt 0:29:53]} 18. g3 {[%emt 0:09:29]} Kg7 {[%emt 0:05:02]} 19. Bf1 {[%emt 0:03:06]} Nf8 {[%emt 0:02:31]} 20. Bg2 {[%emt 0:01:33]} Ne6 {[%emt 0:02:50]} 21. Red1 {[%emt 0:02:54]} Qb4 {[%emt 0:02:52]} 22. Ne1 {[%emt 0:02:27]} Qxb3 {[%emt 0:01:03]} 23. axb3 {[%emt 0:00:01]} Red8 {[%emt 0:00:06]} 24. Nd3 {[%emt 0:01:01]} Be7 {[%emt 0:06:10]} 25. Ne5 {[%emt 0:01:29]} Bb4 {[%emt 0:00:34]} 26. Ne2 {[%emt 0:03:22]} Rd6 {[%emt 0:00:53]} 27. Nd3 {[%emt 0:00:56]} c5 {[%emt 0:01:30]} 28. bxc6 {[%emt 0:03:06]} Bxc6 {[%emt 0:00:28]} 29. Nxb4 {[%emt 0:03:04]} axb4 {[%emt 0:00:05]} 30. Rc2 {[%emt 0:01:33]} Rcd8 {[%emt 0:02:39]} 31. Nc1 {[%emt 0:01:24]} Bb7 {[%emt 0:01:57]} 32. Nd3 {[%emt 0:00:56]} Ra8 {[%emt 0:00:10]} 33. Nxb4 {[%emt 0:00:29]} Ra3 {[%emt 0:00:07]} 34. Rc3 {[%emt 0:00:58]} Rd8 {[%emt 0:00:48]} 35. Rdc1 {[%emt 0:01:52]} Kf6 {[%emt 0:00:06]} 36. Nd3 {[%emt 0:00:53]} Ke7 {[%emt 0:00:21]} 37. Ne5 {[%emt 0:00:37]} Ba8 {[%emt 0:01:02]} 38. Bh3 {[%emt 0:01:43]} 1-0

[Event "Bayerischer Schachbund IM 2024"]
[Site "Rosenheim"]
[Date "2024.08.13"]
[Round "3.9"]
[White "Schneider, Jana"]
[Black "Zysk, Robert"]
[Result "*"]
[Annotator "RC"]
[ECO "C02"]
[WhiteElo "2275"]
[BlackElo "2376"]
[PlyCount "115"]
[EventDate "2024.08.12"]
[EventType "tourn"]
[EventCountry "GER"]
[SourceTitle "playchess.com"]
[Source "ChessBase"]
[SourceQuality "1"]
[TimeControl "40/5400+30:1800+30"]

1. e4 {[%emt 0:00:04]} e6 {[%emt 0:02:40]} 2. d4 {[%emt 0:00:11]} d5 {[%emt 0:00:02]} 3. e5 {[%emt 0:00:07]} c5 {[%emt 0:00:04]} 4. c3 {[%emt 0:00:04]} Nc6 {[%emt 1:29:44]} 5. Nf3 {[%emt 0:00:06]} Bd7 {[%emt 0:00:04]} 6. Be2 {[%emt 0:00:28]} Nge7 {[%emt 0:00:12]} 7. O-O {[%emt 1:33:00]} cxd4 {[%emt 0:00:07]} 8. cxd4 {[%emt 1:33:04]} Nf5 {[%emt 0:00:07]} 9. Nc3 {[%emt 0:02:07]} Rc8 {[%emt 0:02:22]} 10. Kh1 {[%emt 0:08:31]} a6 {[%emt 0:09:18]} 11. a3 {[%emt 0:05:13]} Be7 {[%emt 0:04:44]} 12. g4 {[%emt 0:03:03]} Nh4 {[%emt 0:00:08]} 13. Nxh4 {[%emt 0:00:16]} Bxh4 {[%emt 0:00:07]} 14. f4 {[%emt 0:00:59]} Be7 {[%emt 0:00:52]} 15. Be3 {[%emt 0:01:57]} f6 {[%emt 0:03:17]} 16. Bd3 {[%emt 0:12:45]} O-O {[%emt 0:10:53]} 17. exf6 {[%emt 0:07:11]} gxf6 {[%emt 0:10:10]} 18. g5 {[%emt 0:03:54]} f5 {[%emt 0:01:35]} 19. Qh5 {[%emt 0:16:24]} Be8 {[%emt 0:09:58]} 20. Qh6 {[%emt 0:00:24]} Bg6 {[%emt 0:02:03]} 21. Rae1 {[%emt 0:05:01]} Re8 {[%emt 0:09:07]} 22. Qh4 {[%emt 0:32:12]} Bf8 {[%emt 0:03:02]} 23. Qf2 {[%emt 0:00:48]} Na5 {[%emt 0:04:55]} 24. Na4 {[%emt 0:04:52]} Nc4 {[%emt 0:06:44]} 25. Nc5 {[%emt 0:01:44]} Nd6 {[%emt 0:02:51]} 26. Qe2 {[%emt 0:05:23]} Qc7 {[%emt 0:06:46]} 27. Rc1 {[%emt 0:02:26]} Qf7 {[%emt 0:00:20]} 28. Bc2 {[%emt 0:01:33]} Ne4 {[%emt 0:00:48]} 29. Ba4 {[%emt 0:04:01]} Red8 {[%emt 0:02:22]} 30. Nd3 {[%emt 0:01:42]} Bh5 {[%emt 0:00:53]} 31. Qg2 {[%emt 0:01:21]} Bd6 {[%emt 0:00:58]} 32. Rc2 {[%emt 0:03:04]} b5 {[%emt 0:01:22]} 33. Bb3 {[%emt 0:01:40]} Bg4 {[%emt 0:01:00]} 34. Nf2 {[%emt 0:02:47]} Rxc2 {[%emt 0:01:39]} 35. Bxc2 {[%emt 0:00:01]} Be2 {[%emt 0:02:31]} 36. Re1 {[%emt 0:01:08]} Bh5 {[%emt 0:00:09]} 37. Bd1 {[%emt 0:00:45]} Bxd1 {[%emt 0:01:37]} 38. Rxd1 {[%emt 0:00:07]} Rc8 {[%emt 0:00:35]} 39. Nd3 {[%emt 0:00:43]} Qh5 {[%emt 0:00:43]} 40. Rg1 {[%emt 0:00:42]} Kf7 {[%emt 0:01:00]} 41. Ne1 {[%emt 0:09:37]} Ke7 {[%emt 0:11:43]} 42. Qf3 {[%emt 0:02:14]} Qxf3+ {[%emt 0:07:53]} 43. Nxf3 {[%emt 0:00:02]} Kf7 {[%emt 0:00:41]} 44. Nh4 {[%emt 0:20:46]} a5 {[%emt 0:02:04]} 45. Rg2 {[%emt 0:02:11]} a4 {[%emt 0:01:34]} 46. Re2 {[%emt 0:02:17]} Bb8 {[%emt 0:06:34]} 47. Nf3 {[%emt 0:00:48]} Kg6 {[%emt 0:00:17]} 48. Kg2 {[%emt 0:13:29]} Kh5 {[%emt 0:00:11]} 49. Ne1 {[%emt 0:01:29]} Bd6 {[%emt 0:01:44]} 50. Nd3 {[%emt 0:01:47]} Bf8 {[%emt 0:01:44]} 51. Nc5 {[%emt 0:01:46]} Bxc5 {[%emt 0:02:18]} 52. dxc5 {[%emt 0:00:01]} h6 {[%emt 0:00:45]} 53. gxh6 {[%emt 0:00:43]} Kxh6 {[%emt 0:00:08]} 54. Kf3 {[%emt 0:00:35]} Rc7 {[%emt 0:00:52]} 55. Rc2 {[%emt 0:00:46]} Rc6 {[%emt 0:00:26]} 56. Bd4 {[%emt 0:00:27]} Kh5 {[%emt 0:01:27]} 57. Rg2 {[%emt 0:06:19]} Rc7 58. h4 {[%emt 0:00:30]} *

[Event "Bayerischer Schachbund IM 2024"]
[Site "Rosenheim"]
[Date "2024.08.13"]
[Round "3.10"]
[White "Lucas, Arthur"]
[Black "Platzgummer, Fabian"]
[Result "1/2-1/2"]
[Annotator "RC"]
[ECO "B15"]
[WhiteElo "2332"]
[BlackElo "2304"]
[PlyCount "75"]
[EventDate "2024.08.12"]
[EventType "tourn"]
[EventCountry "GER"]
[SourceTitle "playchess.com"]
[Source "ChessBase"]
[SourceQuality "1"]
[TimeControl "40/5400+30:1800+30"]

1. e4 {[%emt 0:01:36]} c6 {[%emt 0:00:09]} 2. d4 {[%emt 0:00:27]} d5 {[%emt 0:00:07]} 3. Nc3 {[%emt 0:00:03]} dxe4 {[%emt 0:00:36]} 4. Nxe4 {[%emt 0:00:06]} Nf6 {[%emt 0:00:08]} 5. Nxf6+ {[%emt 0:00:11]} exf6 {[%emt 0:00:06]} 6. Bd3 {[%emt 0:00:08]} g6 {[%emt 0:00:24]} 7. Ne2 {[%emt 0:06:41]} Bg7 {[%emt 0:01:41]} 8. Be3 {[%emt 0:02:01]} Bf5 {[%emt 0:06:57]} 9. Bxf5 {[%emt 0:03:16]} Qa5+ {[%emt 0:00:09]} 10. Qd2 {[%emt 0:00:04]} Qxf5 {[%emt 0:00:28]} 11. Qb4 {[%emt 0:10:39]} Qd7 {[%emt 0:05:29]} 12. O-O-O {[%emt 0:00:36]} Na6 {[%emt 0:12:17]} 13. Qa3 {[%emt 0:01:28]} Bf8 {[%emt 0:08:57]} 14. Qa4 {[%emt 0:07:15]} O-O-O {[%emt 0:09:18]} 15. d5 {[%emt 0:06:48]} c5 {[%emt 0:03:00]} 16. Qxd7+ {[%emt 0:00:48]} Rxd7 {[%emt 0:00:15]} 17. c4 {[%emt 0:00:08]} Nc7 {[%emt 0:05:59]} 18. Nc3 {[%emt 0:01:18]} f5 {[%emt 0:00:31]} 19. Bf4 {[%emt 0:11:01]} Ne8 {[%emt 0:10:19]} 20. Rhe1 {[%emt 0:04:25]} Bd6 {[%emt 0:01:32]} 21. Be5 {[%emt 0:01:17]} Bxe5 {[%emt 0:01:44]} 22. Rxe5 {[%emt 0:00:03]} Nd6 {[%emt 0:00:10]} 23. b3 {[%emt 0:00:13]} Kc7 {[%emt 0:01:39]} 24. Kc2 {[%emt 0:04:55]} Rb8 {[%emt 0:00:58]} 25. a4 {[%emt 0:06:26]} a5 {[%emt 0:05:49]} 26. Rde1 {[%emt 0:02:49]} Rf8 {[%emt 0:02:19]} 27. Kd3 {[%emt 0:02:12]} Kd8 {[%emt 0:02:56]} 28. Ke3 {[%emt 0:10:28]} Re7 {[%emt 0:14:01]} 29. Kf4 {[%emt 0:02:51]} Rxe5 {[%emt 0:03:57]} 30. Rxe5 {[%emt 0:00:02]} h6 {[%emt 0:00:12]} 31. Nb5 {[%emt 0:02:49]} Nxb5 {[%emt 0:01:16]} 32. axb5 {[%emt 0:00:06]} Kd7 {[%emt 0:00:45]} 33. Re2 {[%emt 0:02:29]} b6 {[%emt 0:00:53]} 34. h4 {[%emt 0:00:15]} Ra8 {[%emt 0:00:50]} 35. Ra2 {[%emt 0:05:41]} Re8 {[%emt 0:00:08]} 36. h5 {[%emt 0:00:02]} Re4+ {[%emt 0:00:23]} 37. Kf3 {[%emt 0:00:02]} g5 {[%emt 0:00:45]} 38. g3 {[%emt 0:01:56]} 1/2-1/2

[Event "Bayerischer Schachbund IM 2024"]
[Site "Rosenheim"]
[Date "2024.08.14"]
[Round "4.6"]
[White "Schulz, Lukas"]
[Black "Platzgummer, Fabian"]
[Result "1/2-1/2"]
[Annotator "RC"]
[ECO "B11"]
[WhiteElo "2298"]
[BlackElo "2304"]
[PlyCount "30"]
[EventDate "2024.08.12"]
[EventType "tourn"]
[EventCountry "GER"]
[SourceTitle "playchess.com"]
[Source "ChessBase"]
[SourceQuality "1"]
[TimeControl "40/5400+30:1800+30"]

1. e4 {[%emt 0:00:02]} c6 {[%emt 0:01:00]} 2. Nc3 {[%emt 0:00:40]} d5 {[%emt 0:00:06]} 3. g3 {[%emt 0:00:06]} dxe4 {[%emt 0:00:42]} 4. Nxe4 {[%emt 0:00:10]} Nf6 {[%emt 0:00:24]} 5. Bg2 {[%emt 0:01:20]} Nxe4 {[%emt 0:01:12]} 6. Bxe4 {[%emt 0:00:13]} e5 {[%emt 0:00:12]} 7. Bg2 {[%emt 1:31:29]} Bc5 {[%emt 0:01:23]} 8. d3 {[%emt 0:00:00]} O-O {[%emt 0:00:29]} 9. Qe2 {[%emt 0:00:00]} Re8 {[%emt 0:02:42]} 10. Nf3 {[%emt 0:00:00]} Nd7 {[%emt 0:04:48]} 11. O-O {[%emt 0:02:00]} Nf6 {[%emt 0:01:29]} 12. Be3 {[%emt 0:00:00]} Bd6 {[%emt 0:07:45]} 13. Ng5 {[%emt 0:00:00]} Qe7 {[%emt 0:10:00]} 14. Rad1 {[%emt 0:00:00]} Ng4 {[%emt 0:06:22]} 15. Bd2 {[%emt 0:00:00]} Nf6 {[%emt 0:08:18]} 1/2-1/2